[Event "Late-Titled-Tuesday-Blitz-September-12-2023"]
[Site "Chess.com"]
[Date "2023.09.12"]
[Round "6"]
[White "emeli_chess"]
[Black "maksimys18"]
[Result "0-1"]
[WhiteElo "2376"]
[BlackElo "2498"]
[TimeControl "180+1"]
[EndTime "15:05:07 PDT"]
[Termination "maksimys18 won on time"]

1. d4 {[%clk 0:02:59.7]} 1... e6 {[%clk 0:02:57.2]} 2. c4 {[%clk 0:02:59.8]}
2... d5 {[%clk 0:02:56.9]} 3. Nc3 {[%clk 0:02:59.4]} 3... Be7 {[%clk 0:02:56.5]}
4. cxd5 {[%clk 0:02:59.2]} 4... exd5 {[%clk 0:02:56.8]} 5. Nf3 {[%clk
0:02:58.8]} 5... Nf6 {[%clk 0:02:57.4]} 6. Bg5 {[%clk 0:02:58.6]} 6... O-O
{[%clk 0:02:57.9]} 7. e3 {[%clk 0:02:58.6]} 7... c6 {[%clk 0:02:57.8]} 8. Bd3
{[%clk 0:02:58.6]} 8... h6 {[%clk 0:02:58.1]} 9. Bh4 {[%clk 0:02:58.2]} 9... Be6
{[%clk 0:02:58.3]} 10. Qc2 {[%clk 0:02:51.2]} 10... Nbd7 {[%clk 0:02:57.4]} 11.
h3 {[%clk 0:02:47.5]} 11... Rc8 {[%clk 0:02:55.7]} 12. O-O {[%clk 0:02:37.9]}
12... c5 {[%clk 0:02:54.8]} 13. dxc5 {[%clk 0:02:29.2]} 13... Nxc5 {[%clk
0:02:54.6]} 14. Nd4 {[%clk 0:02:28.3]} 14... Nfe4 {[%clk 0:02:48.4]} 15. Bxe7
{[%clk 0:02:26.5]} 15... Qxe7 {[%clk 0:02:49.3]} 16. Nxe4 {[%clk 0:02:08.2]}
16... Nxe4 {[%clk 0:02:45.1]} 17. Qe2 {[%clk 0:02:06.9]} 17... Qg5 {[%clk
0:02:36.9]} 18. Bxe4 {[%clk 0:02:00.9]} 18... dxe4 {[%clk 0:02:36.6]} 19. Nxe6
{[%clk 0:02:01.1]} 19... fxe6 {[%clk 0:02:36.2]} 20. Rac1 {[%clk 0:02:00.4]}
20... Rce8 {[%clk 0:02:25.1]} 21. Rc7 {[%clk 0:01:54.4]} 21... Rf3 {[%clk
0:02:22.8]} 22. Rd1 {[%clk 0:01:42.7]} 22... Ref8 {[%clk 0:02:10.8]} 23. Rdd7
{[%clk 0:01:39.9]} 23... R3f7 {[%clk 0:01:32.6]} 24. Rxf7 {[%clk 0:01:39.3]}
24... Rxf7 {[%clk 0:01:31.1]} 25. Rxf7 {[%clk 0:01:38.8]} 25... Kxf7 {[%clk
0:01:32]} 26. Qc4 {[%clk 0:01:36.2]} 26... Qd5 {[%clk 0:01:27.6]} 27. Qc7+
{[%clk 0:01:28.8]} 27... Kg6 {[%clk 0:01:25.5]} 28. b3 {[%clk 0:01:27.1]} 28...
a6 {[%clk 0:01:13.8]} 29. Qf4 {[%clk 0:01:11.5]} 29... Kh7 {[%clk 0:01:06.9]}
30. g4 {[%clk 0:01:10.4]} 30... a5 {[%clk 0:01:05.9]} 31. h4 {[%clk 0:01:07]}
31... b5 {[%clk 0:01:05.3]} 32. g5 {[%clk 0:01:05.8]} 32... hxg5 {[%clk
0:01:04.9]} 33. hxg5 {[%clk 0:01:06]} 33... Kg6 {[%clk 0:01:04.4]} 34. Kh2
{[%clk 0:01:03.6]} 34... a4 {[%clk 0:01:03]} 35. bxa4 {[%clk 0:01:01.4]} 35...
bxa4 {[%clk 0:01:03.9]} 36. a3 {[%clk 0:01:01.9]} 36... Qf5 {[%clk 0:00:45.6]}
37. Qh4 {[%clk 0:00:37.2]} 37... e5 {[%clk 0:00:38.4]} 38. Kh1 {[%clk
0:00:28.4]} 38... Qf3+ {[%clk 0:00:32.4]} 39. Kh2 {[%clk 0:00:27.7]} 39... Kf5
{[%clk 0:00:27.7]} 40. Qh7+ {[%clk 0:00:26]} 40... g6 {[%clk 0:00:27]} 41. Qd7+
{[%clk 0:00:19.8]} 41... Kxg5 {[%clk 0:00:26.7]} 42. Qe6 {[%clk 0:00:19.7]}
42... Qxf2+ {[%clk 0:00:26.2]} 43. Kh1 {[%clk 0:00:20.2]} 43... Qxe3 {[%clk
0:00:23.9]} 44. Qxe5+ {[%clk 0:00:20.5]} 44... Kg4 {[%clk 0:00:22]} 45. Qe6+
{[%clk 0:00:20.8]} 45... Kf3 {[%clk 0:00:20.8]} 46. Qxg6 {[%clk 0:00:20]} 46...
Qc1+ {[%clk 0:00:19.9]} 47. Kh2 {[%clk 0:00:19.9]} 47... Qd2+ {[%clk 0:00:20]}
48. Kh3 {[%clk 0:00:19.5]} 48... Qe3 {[%clk 0:00:18.2]} 49. Kh4 {[%clk
0:00:16.2]} 49... Qf4+ {[%clk 0:00:17]} 50. Kh3 {[%clk 0:00:16]} 50... Ke3
{[%clk 0:00:16.6]} 51. Qb6+ {[%clk 0:00:14.9]} 51... Ke2 {[%clk 0:00:15.9]} 52.
Qb5+ {[%clk 0:00:14.9]} 52... Kf2 {[%clk 0:00:15.6]} 53. Qb2+ {[%clk 0:00:13.6]}
53... Ke1 {[%clk 0:00:14.9]} 54. Qc3+ {[%clk 0:00:12.4]} 54... Qd2 {[%clk
0:00:14.3]} 55. Qg3+ {[%clk 0:00:12]} 55... Qf2 {[%clk 0:00:13.9]} 56. Qc3+
{[%clk 0:00:12.2]} 56... Qd2 {[%clk 0:00:13.9]} 57. Qg3+ {[%clk 0:00:12.1]}
57... Kd1 {[%clk 0:00:14.1]} 58. Kg4 {[%clk 0:00:08.1]} 58... e3 {[%clk
0:00:13.5]} 59. Kf3 {[%clk 0:00:05.5]} 59... e2 {[%clk 0:00:13.6]} 0-1

[Event "Late-Titled-Tuesday-Blitz-September-12-2023"]
[Site "Chess.com"]
[Date "2023.09.12"]
[Round "6"]
[White "Jenia84"]
[Black "Andrej2004"]
[Result "1-0"]
[WhiteElo "2378"]
[BlackElo "2535"]
[TimeControl "180+1"]
[EndTime "15:05:15 PDT"]
[Termination "Jenia84 won by resignation"]

1. Nf3 {[%clk 0:02:53.5]} 1... b6 {[%clk 0:03:00.9]} 2. g3 {[%clk 0:02:53]} 2...
Bb7 {[%clk 0:02:59.7]} 3. Bg2 {[%clk 0:02:53.6]} 3... g6 {[%clk 0:03:00.4]} 4.
O-O {[%clk 0:02:53.7]} 4... Bg7 {[%clk 0:03:01]} 5. c3 {[%clk 0:02:53.5]} 5...
d6 {[%clk 0:03:01.6]} 6. d4 {[%clk 0:02:52.9]} 6... Nf6 {[%clk 0:03:01.9]} 7.
Bg5 {[%clk 0:02:51.2]} 7... O-O {[%clk 0:03:01.9]} 8. Nbd2 {[%clk 0:02:50.3]}
8... Nbd7 {[%clk 0:03:02.2]} 9. Qc2 {[%clk 0:02:49.6]} 9... h6 {[%clk 0:03:02]}
10. Bxf6 {[%clk 0:02:45.1]} 10... Bxf6 {[%clk 0:03:02.9]} 11. e4 {[%clk
0:02:45.1]} 11... e5 {[%clk 0:03:03.1]} 12. Rad1 {[%clk 0:02:43.1]} 12... Re8
{[%clk 0:03:03.2]} 13. Rfe1 {[%clk 0:02:42.1]} 13... Qe7 {[%clk 0:03:03.2]} 14.
dxe5 {[%clk 0:02:39.2]} 14... Nxe5 {[%clk 0:03:01.2]} 15. Nxe5 {[%clk
0:02:38.5]} 15... Bxe5 {[%clk 0:03:02.1]} 16. f4 {[%clk 0:02:23.3]} 16... Bg7
{[%clk 0:03:02.1]} 17. Nc4 {[%clk 0:02:17.2]} 17... a5 {[%clk 0:02:56.4]} 18. e5
{[%clk 0:02:15.9]} 18... Bxg2 {[%clk 0:02:35.3]} 19. Qxg2 {[%clk 0:02:14.9]}
19... dxe5 {[%clk 0:02:30.2]} 20. Nxe5 {[%clk 0:02:14.5]} 20... Qc5+ {[%clk
0:02:27.9]} 21. Qf2 {[%clk 0:02:14]} 21... Qb5 {[%clk 0:02:22.5]} 22. c4 {[%clk
0:02:07.1]} 22... Qb4 {[%clk 0:02:16.7]} 23. b3 {[%clk 0:02:03.2]} 23... Bxe5
{[%clk 0:02:08.3]} 24. fxe5 {[%clk 0:01:55.7]} 24... Qe7 {[%clk 0:02:05.7]} 25.
Rd5 {[%clk 0:01:50.7]} 25... Rad8 {[%clk 0:02:01.3]} 26. Qd4 {[%clk 0:01:44.5]}
26... Qg5 {[%clk 0:01:41.6]} 27. Qf4 {[%clk 0:01:38]} 27... Qxf4 {[%clk
0:01:37.6]} 28. gxf4 {[%clk 0:01:37.6]} 28... c6 {[%clk 0:01:38.3]} 29. Rdd1
{[%clk 0:01:26.8]} 29... Kf8 {[%clk 0:01:34.4]} 30. Kf2 {[%clk 0:01:26.3]} 30...
Ke7 {[%clk 0:01:34.1]} 31. Ke3 {[%clk 0:01:22.8]} 31... Ke6 {[%clk 0:01:29.6]}
32. Ke4 {[%clk 0:01:21.9]} 32... f6 {[%clk 0:01:27.9]} 33. Rg1 {[%clk
0:01:13.8]} 33... Kf7 {[%clk 0:00:58]} 34. h4 {[%clk 0:00:46.2]} 34... g5 {[%clk
0:00:47.5]} 35. hxg5 {[%clk 0:00:44.9]} 35... hxg5 {[%clk 0:00:47.6]} 36. Rxd8
{[%clk 0:00:43.2]} 36... Rxd8 {[%clk 0:00:46]} 37. fxg5 {[%clk 0:00:43.5]} 37...
fxe5 {[%clk 0:00:44.5]} 38. g6+ {[%clk 0:00:41.5]} 38... Kg7 {[%clk 0:00:42.7]}
39. Kxe5 {[%clk 0:00:41.2]} 39... Rd2 {[%clk 0:00:43.4]} 40. Rg3 {[%clk
0:00:34.3]} 40... b5 {[%clk 0:00:37.5]} 41. cxb5 {[%clk 0:00:29.2]} 41... cxb5
{[%clk 0:00:38.4]} 42. a3 {[%clk 0:00:27.7]} 42... b4 {[%clk 0:00:36]} 43. axb4
{[%clk 0:00:27]} 43... axb4 {[%clk 0:00:36.9]} 44. Ke4 {[%clk 0:00:26.7]} 44...
Rd1 {[%clk 0:00:30.5]} 45. Rd3 {[%clk 0:00:25.3]} 45... Rh1 {[%clk 0:00:19]} 46.
Kd5 {[%clk 0:00:24.5]} 46... Kxg6 {[%clk 0:00:18.9]} 47. Kc4 {[%clk 0:00:24.6]}
47... Kf6 {[%clk 0:00:18.3]} 48. Kxb4 {[%clk 0:00:22.2]} 48... Ke5 {[%clk
0:00:18.9]} 49. Kc5 {[%clk 0:00:21.3]} 49... Rh8 {[%clk 0:00:18.9]} 50. b4
{[%clk 0:00:21.3]} 50... Rc8+ {[%clk 0:00:18.9]} 51. Kb5 {[%clk 0:00:20.7]}
51... Rb8+ {[%clk 0:00:19.4]} 52. Ka5 {[%clk 0:00:19.7]} 52... Ra8+ {[%clk
0:00:19.8]} 53. Kb5 {[%clk 0:00:19.6]} 53... Rb8+ {[%clk 0:00:20.4]} 54. Kc4
{[%clk 0:00:20.2]} 54... Rc8+ {[%clk 0:00:20.3]} 55. Kb3 {[%clk 0:00:20.6]}
55... Rb8 {[%clk 0:00:20.8]} 56. Rd7 {[%clk 0:00:19.8]} 56... Ke6 {[%clk
0:00:20.7]} 57. Rd4 {[%clk 0:00:19.4]} 57... Ke5 {[%clk 0:00:21.1]} 58. Kc3
{[%clk 0:00:19.4]} 58... Rc8+ {[%clk 0:00:19.8]} 59. Rc4 {[%clk 0:00:19.5]}
59... Rb8 {[%clk 0:00:20.3]} 60. Rc6 {[%clk 0:00:17.7]} 60... Kd5 {[%clk
0:00:20.5]} 61. Rc5+ {[%clk 0:00:16.4]} 61... Kd6 {[%clk 0:00:18.1]} 62. Kc4
{[%clk 0:00:17]} 62... Rb7 {[%clk 0:00:17.9]} 63. b5 {[%clk 0:00:16.7]} 63...
Ra7 {[%clk 0:00:17]} 64. Rc6+ {[%clk 0:00:16.9]} 64... Kd7 {[%clk 0:00:16.3]}
65. Kc5 {[%clk 0:00:17.4]} 65... Rb7 {[%clk 0:00:16.4]} 66. b6 {[%clk
0:00:16.7]} 66... Kd8 {[%clk 0:00:14.5]} 67. Kb5 {[%clk 0:00:15.2]} 67... Rh7
{[%clk 0:00:13.7]} 68. Ka6 {[%clk 0:00:14.8]} 68... Rh1 {[%clk 0:00:13.8]} 69.
Kb7 {[%clk 0:00:14.1]} 69... Kd7 {[%clk 0:00:11.8]} 70. Rc7+ {[%clk 0:00:13.7]}
70... Kd6 {[%clk 0:00:12.4]} 71. Rg7 {[%clk 0:00:13.1]} 71... Rg1 {[%clk
0:00:10.8]} 72. Rxg1 {[%clk 0:00:11.6]} 1-0

[Event "Late-Titled-Tuesday-Blitz-September-12-2023"]
[Site "Chess.com"]
[Date "2023.09.12"]
[Round "6"]
[White "DvaHrasta"]
[Black "Veleamater"]
[Result "0-1"]
[WhiteElo "2462"]
[BlackElo "2329"]
[TimeControl "180+1"]
[EndTime "15:05:16 PDT"]
[Termination "Veleamater won on time"]

1. c4 {[%clk 0:03:00.9]} 1... d6 {[%clk 0:03:00.9]} 2. g3 {[%clk 0:03:00.5]}
2... g6 {[%clk 0:03:01.6]} 3. Bg2 {[%clk 0:03:00.8]} 3... Bg7 {[%clk 0:03:02.2]}
4. Nc3 {[%clk 0:03:00.7]} 4... Nf6 {[%clk 0:03:02.4]} 5. Nf3 {[%clk 0:03:00.8]}
5... O-O {[%clk 0:03:03.3]} 6. O-O {[%clk 0:03:01]} 6... Nc6 {[%clk 0:03:03.9]}
7. d3 {[%clk 0:03:01.1]} 7... e5 {[%clk 0:03:04.6]} 8. Rb1 {[%clk 0:03:01.4]}
8... h6 {[%clk 0:03:05.2]} 9. b4 {[%clk 0:03:00.8]} 9... Nd7 {[%clk 0:03:04.4]}
10. b5 {[%clk 0:02:58.3]} 10... Ne7 {[%clk 0:03:04.3]} 11. e4 {[%clk 0:02:54.3]}
11... Rb8 {[%clk 0:03:04]} 12. Be3 {[%clk 0:02:51.5]} 12... f5 {[%clk
0:03:03.5]} 13. Bxa7 {[%clk 0:02:46.1]} 13... Ra8 {[%clk 0:03:03.1]} 14. Be3
{[%clk 0:02:46]} 14... f4 {[%clk 0:03:03.7]} 15. Bd2 {[%clk 0:02:45.1]} 15... g5
{[%clk 0:03:03.6]} 16. h3 {[%clk 0:02:44.5]} 16... Ng6 {[%clk 0:03:03.6]} 17. a4
{[%clk 0:02:43.6]} 17... h5 {[%clk 0:03:00.5]} 18. Re1 {[%clk 0:02:20.5]} 18...
g4 {[%clk 0:02:59.7]} 19. hxg4 {[%clk 0:02:19.3]} 19... hxg4 {[%clk 0:02:59.7]}
20. Nh2 {[%clk 0:02:18.2]} 20... f3 {[%clk 0:03:00.1]} 21. Bf1 {[%clk
0:02:17.1]} 21... Nc5 {[%clk 0:02:58.8]} 22. Be3 {[%clk 0:02:07.5]} 22... Nf4
{[%clk 0:02:43.9]} 23. d4 {[%clk 0:01:57.8]} 23... exd4 {[%clk 0:02:05.2]} 24.
Bxd4 {[%clk 0:01:56.4]} 24... Nfe6 {[%clk 0:01:57.7]} 25. Bxg7 {[%clk
0:01:50.7]} 25... Nxg7 {[%clk 0:01:57.6]} 26. Nd5 {[%clk 0:01:34.7]} 26... b6
{[%clk 0:01:56.3]} 27. Qd2 {[%clk 0:01:23.4]} 27... Be6 {[%clk 0:01:51.2]} 28.
Qh6 {[%clk 0:01:15.9]} 28... Nd7 {[%clk 0:01:44.3]} 29. Nf4 {[%clk 0:01:07]}
29... Qf6 {[%clk 0:01:38]} 30. Qxf6 {[%clk 0:01:05.1]} 30... Nxf6 {[%clk
0:01:37.7]} 31. e5 {[%clk 0:00:58.4]} 31... dxe5 {[%clk 0:01:35]} 32. Rxe5
{[%clk 0:00:58.5]} 32... Bf5 {[%clk 0:01:35.4]} 33. Ra1 {[%clk 0:00:55.7]} 33...
Rfe8 {[%clk 0:01:33.5]} 34. Rxe8+ {[%clk 0:00:49.5]} 34... Nfxe8 {[%clk
0:01:29.3]} 35. c5 {[%clk 0:00:46.8]} 35... Kf8 {[%clk 0:01:24.8]} 36. Bc4
{[%clk 0:00:38.3]} 36... bxc5 {[%clk 0:01:24.2]} 37. Nd5 {[%clk 0:00:35]} 37...
Nd6 {[%clk 0:01:22.4]} 38. Ne3 {[%clk 0:00:31.6]} 38... Nxc4 {[%clk 0:01:17.8]}
39. Nxc4 {[%clk 0:00:30.9]} 39... Be6 {[%clk 0:01:16.8]} 40. Ne3 {[%clk
0:00:30.1]} 40... Bb3 {[%clk 0:01:14.8]} 41. a5 {[%clk 0:00:29.2]} 41... c4
{[%clk 0:01:12.8]} 42. Nd5 {[%clk 0:00:28.4]} 42... Ne6 {[%clk 0:01:10]} 43.
Nxg4 {[%clk 0:00:27.5]} 43... Rb8 {[%clk 0:01:08.5]} 44. a6 {[%clk 0:00:25.3]}
44... Ra8 {[%clk 0:01:07.9]} 45. Ne5 {[%clk 0:00:23.8]} 45... Ke8 {[%clk
0:01:06.1]} 46. Nxf3 {[%clk 0:00:23.2]} 46... Kd8 {[%clk 0:01:04.4]} 47. Nd2
{[%clk 0:00:21.6]} 47... Nc5 {[%clk 0:00:59.4]} 48. Nxb3 {[%clk 0:00:19]} 48...
cxb3 {[%clk 0:00:58.1]} 49. Rb1 {[%clk 0:00:16.7]} 49... Kd7 {[%clk 0:00:52.1]}
50. Nb4 {[%clk 0:00:13]} 50... Kd6 {[%clk 0:00:51.5]} 51. Rd1+ {[%clk
0:00:08.6]} 51... Ke6 {[%clk 0:00:50.8]} 52. Nd3 {[%clk 0:00:08.5]} 52... Ne4
{[%clk 0:00:29.1]} 53. Rb1 {[%clk 0:00:08.2]} 53... Nd2 {[%clk 0:00:29]} 54. Rb2
{[%clk 0:00:08.4]} 54... Nf3+ {[%clk 0:00:28.4]} 55. Kg2 {[%clk 0:00:08.5]}
55... Nd4 {[%clk 0:00:29.2]} 56. Nc1 {[%clk 0:00:07.9]} 56... Nxb5 {[%clk
0:00:28.3]} 57. Nxb3 {[%clk 0:00:06.8]} 57... Kd5 {[%clk 0:00:26.3]} 58. Ra2
{[%clk 0:00:06.3]} 58... c5 {[%clk 0:00:25.4]} 59. Nd2 {[%clk 0:00:04.1]} 59...
c4 {[%clk 0:00:23.5]} 60. Nxc4 {[%clk 0:00:04.1]} 60... Kxc4 {[%clk 0:00:23.5]}
61. a7 {[%clk 0:00:04.5]} 61... Nxa7 {[%clk 0:00:22.9]} 62. f4 {[%clk
0:00:04.4]} 62... Kc5 {[%clk 0:00:23.5]} 63. Kf3 {[%clk 0:00:04.5]} 63... Kb6
{[%clk 0:00:24.1]} 64. g4 {[%clk 0:00:04.7]} 64... Rf8 {[%clk 0:00:22.3]} 65. g5
{[%clk 0:00:04.4]} 65... Nb5 {[%clk 0:00:22.6]} 66. Kg4 {[%clk 0:00:03.8]} 66...
Nd4 {[%clk 0:00:20.9]} 67. Rd2 {[%clk 0:00:02.7]} 67... Kc5 {[%clk 0:00:20.6]}
68. g6 {[%clk 0:00:02]} 68... Nb3 {[%clk 0:00:16]} 69. Rd7 {[%clk 0:00:01.2]}
69... Kc6 {[%clk 0:00:13.8]} 0-1

[Event "Late-Titled-Tuesday-Blitz-September-12-2023"]
[Site "Chess.com"]
[Date "2023.09.12"]
[Round "6"]
[White "BrandonJacobson"]
[Black "Iball95"]
[Result "0-1"]
[WhiteElo "3036"]
[BlackElo "2797"]
[TimeControl "180+1"]
[EndTime "15:05:23 PDT"]
[Termination "Iball95 won on time"]

1. Nf3 {[%clk 0:03:00.9]} 1... d5 {[%clk 0:02:59.9]} 2. e3 {[%clk 0:03:00.5]}
2... Nf6 {[%clk 0:02:59.9]} 3. c4 {[%clk 0:03:01.4]} 3... e6 {[%clk 0:03:00.4]}
4. Nc3 {[%clk 0:03:01.8]} 4... c5 {[%clk 0:03:00.4]} 5. d4 {[%clk 0:03:01.8]}
5... Nc6 {[%clk 0:03:01.2]} 6. cxd5 {[%clk 0:03:01.8]} 6... exd5 {[%clk
0:03:02.1]} 7. Bb5 {[%clk 0:03:02.3]} 7... cxd4 {[%clk 0:03:02.5]} 8. Nxd4
{[%clk 0:03:02.8]} 8... Bd7 {[%clk 0:03:03.2]} 9. O-O {[%clk 0:03:02.8]} 9...
Bd6 {[%clk 0:03:03.7]} 10. Nf3 {[%clk 0:03:03.5]} 10... Be6 {[%clk 0:03:03.5]}
11. Nd4 {[%clk 0:03:03.4]} 11... Bd7 {[%clk 0:03:03.3]} 12. Nf3 {[%clk
0:03:04.1]} 12... Be6 {[%clk 0:03:03.8]} 13. b3 {[%clk 0:03:04.8]} 13... O-O
{[%clk 0:03:03.7]} 14. Bb2 {[%clk 0:03:04.9]} 14... Rc8 {[%clk 0:02:57.7]} 15.
Rc1 {[%clk 0:03:04]} 15... Qe7 {[%clk 0:02:55.3]} 16. h3 {[%clk 0:02:59.2]}
16... Rfd8 {[%clk 0:02:55.4]} 17. Ne2 {[%clk 0:02:58.8]} 17... Ne4 {[%clk
0:02:52]} 18. Nf4 {[%clk 0:02:56.3]} 18... Bxf4 {[%clk 0:02:18.8]} 19. exf4
{[%clk 0:02:56.7]} 19... f6 {[%clk 0:02:04]} 20. Re1 {[%clk 0:02:49.7]} 20...
Qd6 {[%clk 0:02:02]} 21. Nd4 {[%clk 0:02:30.7]} 21... Nxd4 {[%clk 0:01:59.3]}
22. Qxd4 {[%clk 0:02:31.6]} 22... a6 {[%clk 0:01:58.5]} 23. Bd3 {[%clk
0:02:27.9]} 23... Bf5 {[%clk 0:00:50.2]} 24. Rxc8 {[%clk 0:02:20.6]} 24... Bxc8
{[%clk 0:00:49.2]} 25. Rd1 {[%clk 0:01:52.4]} 25... Nc5 {[%clk 0:00:46.9]} 26.
Bc4 {[%clk 0:01:33.4]} 26... Be6 {[%clk 0:00:38.2]} 27. f5 {[%clk 0:01:23]}
27... Bf7 {[%clk 0:00:38.2]} 28. Be2 {[%clk 0:01:15.2]} 28... a5 {[%clk
0:00:32.4]} 29. Bf3 {[%clk 0:01:12]} 29... b6 {[%clk 0:00:32.5]} 30. Ba3 {[%clk
0:01:08.3]} 30... h6 {[%clk 0:00:32.5]} 31. Rc1 {[%clk 0:01:05.8]} 31... Nxb3
{[%clk 0:00:29.9]} 32. Qb2 {[%clk 0:00:37.4]} 32... Nc5 {[%clk 0:00:29.4]} 33.
Qb5 {[%clk 0:00:37.6]} 33... Be8 {[%clk 0:00:28.4]} 34. Qb1 {[%clk 0:00:17.5]}
34... Rc8 {[%clk 0:00:23.1]} 35. Rd1 {[%clk 0:00:17]} 35... Bf7 {[%clk
0:00:23.4]} 36. Qb5 {[%clk 0:00:16.1]} 36... d4 {[%clk 0:00:22.1]} 37. Be2
{[%clk 0:00:10.5]} 37... Rd8 {[%clk 0:00:20]} 38. Bb2 {[%clk 0:00:07]} 38... d3
{[%clk 0:00:18.3]} 39. Bf1 {[%clk 0:00:06.1]} 39... Bxa2 {[%clk 0:00:18.5]} 40.
Ba3 {[%clk 0:00:06.4]} 40... Bf7 {[%clk 0:00:16.5]} 41. Rxd3 {[%clk 0:00:05.4]}
41... Qc7 {[%clk 0:00:14]} 42. Rc3 {[%clk 0:00:05]} 42... Rc8 {[%clk 0:00:13.4]}
43. Bc4 {[%clk 0:00:03.2]} 43... Bxc4 {[%clk 0:00:09.9]} 44. Qxc4+ {[%clk
0:00:04.1]} 44... Kh8 {[%clk 0:00:10]} 45. Qb5 {[%clk 0:00:04.3]} 45... Qe5
{[%clk 0:00:08.8]} 46. Re3 {[%clk 0:00:02.7]} 46... Qd6 {[%clk 0:00:05.4]} 47.
g3 {[%clk 0:00:01.9]} 47... Rd8 {[%clk 0:00:05]} 48. Bb2 {[%clk 0:00:02.2]}
48... Qd1+ {[%clk 0:00:04.7]} 49. Kh2 {[%clk 0:00:02.6]} 49... Qd2 {[%clk
0:00:04]} 50. Re2 {[%clk 0:00:03.1]} 50... Qd6 {[%clk 0:00:04.1]} 51. Ba3 {[%clk
0:00:03]} 51... Rc8 {[%clk 0:00:04]} 52. Rc2 {[%clk 0:00:02.7]} 52... Qc6 {[%clk
0:00:04.2]} 53. Qc4 {[%clk 0:00:02.6]} 53... Rd8 {[%clk 0:00:04.2]} 54. Rb2
{[%clk 0:00:02.8]} 54... Rc8 {[%clk 0:00:03.8]} 55. Qf7 {[%clk 0:00:02.4]} 55...
Qd7 {[%clk 0:00:03.3]} 56. Qg6 {[%clk 0:00:02.7]} 56... Qc6 {[%clk 0:00:02.9]}
57. Re2 {[%clk 0:00:02.6]} 57... Qd7 {[%clk 0:00:03.1]} 58. Bxc5 {[%clk
0:00:02.2]} 58... bxc5 {[%clk 0:00:03.2]} 59. Rc2 {[%clk 0:00:01.9]} 59... c4
{[%clk 0:00:03.5]} 60. Qg4 {[%clk 0:00:02.3]} 60... Qd3 {[%clk 0:00:03.5]} 61.
Re2 {[%clk 0:00:02.2]} 61... c3 {[%clk 0:00:03.5]} 62. Re7 {[%clk 0:00:02.7]}
62... Rg8 {[%clk 0:00:03.7]} 63. Rc7 {[%clk 0:00:03.2]} 63... Qd2 {[%clk
0:00:03.9]} 0-1